[Event "DMP-III LIGA Senior PK 2020"]
[Site "Bystre"]
[Date "2020.07.12"]
[Round "9.27"]
[White "Chowaniec, Artur"]
[Black "Klok, Kacper"]
[Result "0-1"]
[ECO "B33"]
[WhiteElo "1530"]
[BlackElo "1463"]
[Annotator "NA"]
[PlyCount "108"]
[EventDate "2020.07.05"]
[EventType "team-tourn"]
[EventCountry "POL"]
[SourceTitle "playchess.com"]
[Source "ChessBase"]
[SourceQuality "1"]
[TimeControl "5400+30"]

1. e4 {[%emt 0:00:24]} c5 {[%emt 0:00:00]} 2. Nf3 {[%emt 0:01:06]} Nc6 {[%emt 0:00:49]} 3. d4 {[%emt 0:03:53]} cxd4 {[%emt 0:01:16]} 4. Nxd4 {[%emt 0:04:34]} e5 {[%emt 0:01:10]} 5. Nb5 {[%emt 0:00:35]} d6 {[%emt 0:07:08]} 6. N1c3 {[%emt 0:04:59]} a6 {[%emt 0:01:27]} 7. Na3 {[%emt 0:00:55]} Nf6 {[%emt 0:14:00]} 8. Bg5 {[%emt 0:07:57]} Be6 {[%emt 0:09:21]} 9. Nd5 {[%emt 0:00:52]} Bxd5 {[%emt 0:01:49]} 10. Bxf6 {[%emt 0:01:11]} Qa5+ {[%emt 0:03:55]} 11. c3 {[%emt 0:00:44]} Bxe4 {[%emt 0:00:21]} 12. Bg5 {[%emt 0:04:01]} f6 {[%emt 0:09:32]} 13. Be3 {[%emt 0:01:00]} Qc7 {[%emt 0:19:55]} 14. f3 {[%emt 0:15:16]} Bg6 {[%emt 0:00:07]} 15. Bc4 {[%emt 0:00:10]} b5 {[%emt 0:01:11]} 16. Nxb5 {[%emt 0:00:58]} axb5 {[%emt 0:00:33]} 17. Bxb5 {[%emt 0:00:07]} Bf7 {[%emt 0:00:24]} 18. a4 {[%emt 0:00:09]} Be7 {[%emt 0:00:56]} 19. b4 {[%emt 0:00:06]} O-O {[%emt 0:00:08]} 20. a5 {[%emt 0:00:10]} Na7 {[%emt 0:00:13]} 21. c4 {[%emt 0:01:02]} Bxc4 {[%emt 0:01:18]} 22. Bxc4+ {[%emt 0:03:52]} Qxc4 {[%emt 0:00:07]} 23. Bd2 {[%emt 0:00:35]} Nb5 {[%emt 0:00:41]} 24. Qe2 {[%emt 0:00:24]} d5 {[%emt 0:01:34]} 25. Qxc4 {[%emt 0:00:24]} dxc4 {[%emt 0:00:07]} 26. Rb1 {[%emt 0:00:06]} c3 {[%emt 0:00:13]} 27. Be3 {[%emt 0:00:13]} c2 {[%emt 0:00:50]} 28. Rb2 {[%emt 0:00:11]} Nd4 {[%emt 0:00:26]} 29. O-O {[%emt 0:00:47]} Rfb8 {[%emt 0:00:09]} 30. Bxd4 {[%emt 0:00:29]} exd4 {[%emt 0:00:07]} 31. Rxc2 {[%emt 0:00:05]} Bxb4 {[%emt 0:00:05]} 32. Rc7 {[%emt 0:00:17]} Bxa5 {[%emt 0:00:18]} 33. Rd7 {[%emt 0:00:07]} Bc3 {[%emt 0:00:07]} 34. Kf2 {[%emt 0:01:09]} Ra2+ {[%emt 0:00:43]} 35. Kg3 {[%emt 0:00:11]} Rbb2 {[%emt 0:01:17]} 36. Kf4 {[%emt 0:00:10]} Bd2+ {[%emt 0:00:48]} 37. Ke4 {[%emt 0:00:23]} Be3 {[%emt 0:00:09]} 38. g4 {[%emt 0:00:45]} Rb8 {[%emt 0:00:51]} 39. h4 {[%emt 0:00:40]} Re8+ {[%emt 0:00:11]} 40. Kd5 {[%emt 0:00:41]} Ra5+ {[%emt 0:00:41]} 41. Kc6 {[%emt 0:00:49]} Rae5 {[%emt 0:00:23]} 42. Rb1 {[%emt 0:00:38]} R5e7 {[%emt 0:00:18]} 43. Rd5 {[%emt 0:00:37]} Rc8+ {[%emt 0:00:33]} 44. Kd6 {[%emt 0:00:22]} Kf7 {[%emt 0:00:39]} 45. g5 {[%emt 0:00:33]} Bf4+ {[%emt 0:00:16]} 46. Re5 {[%emt 0:00:20]} Bxe5+ {[%emt 0:00:11]} 47. Kd5 {[%emt 0:00:06]} Rd8+ {[%emt 0:00:08]} 48. Ke4 {[%emt 0:00:12]} Bg3+ {[%emt 0:00:09]} 49. Kf5 {[%emt 0:00:09]} Bxh4 {[%emt 0:00:52]} 50. f4 {[%emt 0:00:10]} fxg5 {[%emt 0:00:19]} 51. fxg5 {[%emt 0:00:08]} Rd5+ {[%emt 0:00:09]} 52. Kg4 {[%emt 0:00:12]} Bxg5 {[%emt 0:00:24]} 53. Rb6 {[%emt 0:00:14]} d3 {[%emt 0:00:14]} 54. Ra6 {[%emt 0:00:08]} d2 0-1

[Event "DMP-III LIGA Senior PK 2020"]
[Site "Bystre"]
[Date "2020.07.12"]
[Round "9.29"]
[White "Kielb, Miroslaw"]
[Black "Karas, Kacper"]
[Result "1-0"]
[ECO "B90"]
[WhiteElo "1394"]
[BlackElo "1150"]
[Annotator "NA RC"]
[PlyCount "131"]
[EventDate "2020.07.05"]
[EventType "team-tourn"]
[EventCountry "POL"]
[SourceTitle "playchess.com"]
[Source "ChessBase"]
[SourceQuality "1"]
[TimeControl "5400+30"]

1. e4 {[%emt 0:00:00]} c5 {[%emt 0:00:00]} 2. Nf3 {[%emt 0:00:00]} d6 {[%emt 0:00:00]} 3. d4 {[%emt 0:00:06]} cxd4 {[%emt 0:00:00]} 4. Nxd4 {[%emt 0:00:06]} Nf6 {[%emt 0:00:00]} 5. Nc3 {[%emt 0:00:26]} a6 {[%emt 0:00:00]} 6. Bd3 {[%emt 0:00:41]} e5 {[%emt 0:00:21]} 7. Nf3 {[%emt 0:01:22]} Be6 {[%emt 0:00:10]} 8. Bg5 {[%emt 0:01:47]} Nbd7 9. Nd5 {[%emt 0:02:07]} Bxd5 {[%emt 0:02:53]} 10. Bxf6 {[%emt 0:01:58]} Nxf6 {[%emt 0:00:54]} 11. exd5 {[%emt 0:00:34]} Qa5+ {[%emt 0:09:03]} 12. c3 {[%emt 0:06:27]} Qxd5 {[%emt 0:01:39]} 13. O-O {[%emt 0:01:11]} Be7 {[%emt 0:00:41]} 14. Re1 {[%emt 0:00:48]} O-O {[%emt 0:01:47]} 15. Qc2 {[%emt 0:03:07]} Rac8 {[%emt 0:02:31]} 16. Rad1 {[%emt 0:00:36]} Qc6 {[%emt 0:01:38]} 17. Ng5 {[%emt 0:02:03]} h6 {[%emt 0:00:21]} 18. Ne4 {[%emt 0:09:12]} d5 {[%emt 0:07:17]} 19. Nxf6+ {[%emt 0:04:37]} Bxf6 {[%emt 0:01:58]} 20. Bf5 {[%emt 0:00:45]} Rc7 {[%emt 0:00:39]} 21. Qb3 {[%emt 0:01:07]} Rd8 {[%emt 0:01:39]} 22. f3 {[%emt 0:05:51]} b5 {[%emt 0:06:52]} 23. Rd3 {[%emt 0:01:12]} g6 {[%emt 0:23:18]} 24. Bh3 {[%emt 0:01:20]} Qc5+ {[%emt 0:02:43]} 25. Kf1 {[%emt 0:01:39]} Qc4 {[%emt 0:04:53]} 26. Red1 {[%emt 0:13:26]} d4 {[%emt 0:03:11]} 27. Ke1 {[%emt 0:06:05]} a5 {[%emt 0:07:09]} 28. cxd4 {[%emt 0:02:30]} exd4 {[%emt 0:00:28]} 29. g3 {[%emt 0:02:48]} Re8+ {[%emt 0:05:07]} 30. Kf2 {[%emt 0:01:16]} Qxb3 {[%emt 0:01:16]} 31. axb3 {[%emt 0:00:55]} Re5 {[%emt 0:02:04]} 32. Rxd4 {[%emt 0:01:59]} Rh5 {[%emt 0:00:39]} 33. Rd6 {[%emt 0:08:31]} Rc2+ {[%emt 0:01:20]} 34. Ke3 {[%emt 0:01:22]} Bg5+ {[%emt 0:01:59]} 35. Kd3 {[%emt 0:03:09]} Rxh2 {[%emt 0:02:42]} 36. Bg4 {[%emt 0:00:23]} Be7 {[%emt 0:00:48]} 37. Rd7 {[%emt 0:01:39]} Re5 {[%emt 0:00:26]} 38. f4 {[%emt 0:00:27]} Rc5 {[%emt 0:04:37]} 39. Rxe7 {[%emt 0:00:33]} Rd5+ {[%emt 0:00:21]} 40. Ke3 {[%emt 0:01:18]} Rxd1 {[%emt 0:00:17]} 41. Bxd1 {[%emt 0:00:12]} Rxb2 {[%emt 0:00:26]} 42. Rb7 {[%emt 0:01:08]} Rg2 {[%emt 0:02:22]} 43. Kf3 {[%emt 0:00:57]} Rd2 {[%emt 0:00:08]} 44. Be2 {[%emt 0:00:17]} a4 {[%emt 0:00:36]} 45. Rxb5 {[%emt 0:01:52]} axb3 {[%emt 0:00:56]} 46. Rxb3 {[%emt 0:00:07]} Rd7 {[%emt 0:00:16]} 47. Rd3 {[%emt 0:01:23]} Ra7 {[%emt 0:00:18]} 48. g4 {[%emt 0:01:22]} Kg7 {[%emt 0:00:39]} 49. Rd5 {[%emt 0:00:36]} Re7 {[%emt 0:01:22]} 50. Bd3 {[%emt 0:00:55]} Ra7 {[%emt 0:01:30]} 51. Ke4 {[%emt 0:00:23]} Re7+ {[%emt 0:00:28]} 52. Re5 {[%emt 0:00:12]} Rd7 {[%emt 0:00:35]} 53. Bc4 {[%emt 0:00:40]} f6 {[%emt 0:02:28]} 54. Re8 {[%emt 0:01:13]} Rc7 {[%emt 0:00:22]} 55. Kd5 {[%emt 0:00:44]} h5 {[%emt 0:00:46]} 56. g5 {[%emt 0:03:44]} fxg5 {[%emt 0:00:21]} 57. fxg5 {[%emt 0:00:12]} Ra7 {[%emt 0:00:43]} 58. Ke6 {[%emt 0:00:56]} Ra5 {[%emt 0:00:32]} 59. Re7+ {[%emt 0:00:40]} Kf8 {[%emt 0:00:16]} 60. Kf6 {[%emt 0:00:33]} Rc5 {[%emt 0:00:25]} 61. Rf7+ {[%emt 0:00:40]} Ke8 {[%emt 0:00:12]} 62. Be6 {[%emt 0:00:35]} Kd8 {[%emt 0:01:05]} 63. Kxg6 {[%emt 0:00:27]} Rc6 {[%emt 0:00:23]} 64. Kf6 {[%emt 0:00:19]} Rb6 {[%emt 0:00:36]} 65. g6 {[%emt 0:00:06]} Rb2 {[%emt 0:00:30]} 66. g7 {[%emt 0:00:33]} 1-0

[Event "DMP-III LIGA Senior PK 2020"]
[Site "Bystre"]
[Date "2020.07.12"]
[Round "9.30"]
[White "Uliasz, Katarzyna"]
[Black "Wolak, Julia"]
[Result "0-1"]
[ECO "B23"]
[WhiteElo "1386"]
[BlackElo "1516"]
[Annotator "NA"]
[PlyCount "60"]
[EventDate "2020.07.05"]
[EventType "team-tourn"]
[EventCountry "POL"]
[SourceTitle "playchess.com"]
[Source "ChessBase"]
[SourceQuality "1"]
[TimeControl "5400+30"]

1. e4 {[%emt 0:00:00]} c5 {[%emt 0:00:00]} 2. Nc3 {[%emt 0:00:00]} Nc6 {[%emt 0:00:08]} 3. f4 {[%emt 0:00:16]} g6 {[%emt 0:00:21]} 4. Nf3 {[%emt 0:00:13]} Bg7 {[%emt 0:00:08]} 5. Bc4 {[%emt 0:00:12]} a6 {[%emt 0:00:49]} 6. d3 {[%emt 0:00:16]} e6 {[%emt 0:02:03]} 7. O-O {[%emt 0:00:11]} Nge7 {[%emt 0:00:14]} 8. Qe1 {[%emt 0:00:56]} O-O {[%emt 0:02:24]} 9. Bb3 {[%emt 0:10:29]} d5 {[%emt 0:00:39]} 10. Ne2 {[%emt 0:01:13]} Na5 {[%emt 0:01:05]} 11. c3 {[%emt 0:02:05]} Nxb3 {[%emt 0:01:09]} 12. axb3 {[%emt 0:00:01]} Nc6 {[%emt 0:07:00]} 13. Nd2 {[%emt 0:06:23]} Qb6 {[%emt 0:04:45]} 14. Kh1 {[%emt 0:01:01]} Na5 {[%emt 0:02:04]} 15. Ng3 {[%emt 0:04:56]} f5 {[%emt 0:01:19]} 16. Qd1 {[%emt 0:04:00]} dxe4 {[%emt 0:01:39]} 17. dxe4 {[%emt 0:00:09]} Rd8 {[%emt 0:00:13]} 18. Qc2 {[%emt 0:00:52]} e5 {[%emt 0:01:46]} 19. Nc4 {[%emt 0:01:47]} Nxc4 {[%emt 0:00:31]} 20. bxc4 {[%emt 0:00:09]} Be6 {[%emt 0:04:50]} 21. exf5 {[%emt 0:02:11]} Bxc4 {[%emt 0:02:56]} 22. Re1 {[%emt 0:00:55]} exf4 {[%emt 0:02:47]} 23. Bxf4 {[%emt 0:04:49]} Bd3 {[%emt 0:00:22]} 24. Qf2 {[%emt 0:00:35]} Rf8 {[%emt 0:04:02]} 25. Re6 {[%emt 0:07:39]} Qb3 {[%emt 0:03:57]} 26. Ra3 {[%emt 0:14:13]} Qc4 {[%emt 0:01:39]} 27. Bd6 {[%emt 0:04:26]} Qxe6 {[%emt 0:06:50]} 28. Bxf8 {[%emt 0:01:01]} Rxf8 {[%emt 0:00:13]} 29. Ra1 {[%emt 0:00:58]} Bxf5 {[%emt 0:00:14]} 30. Qxc5 {[%emt 0:00:18]} Qb3 {[%emt 0:01:57]} 0-1